[Event "Titled Tuesday Blitz June 22 2021"]
[White "Timofeev, Artyom"]
[Black "Alavi, Sayed Javad"]
[WhiteFideId "4140419"]
[BlackFideId "12500607"]
[WhiteElo "2582"]
[BlackElo "2495"]
[Result "1/2-1/2"]
[Round "08"]
[TimeControl "180+1"]
[Date "2021.06.22"]
[WhiteClock "0:00:08"]
[BlackClock "0:00:05"]

1. c4 {[%clk 0:03:00]}  e5 {[%clk 0:02:59]} 2. e3 {[%clk 0:03:00]}  d6 {[%clk 0:02:57]} 3. Nc3 {[%clk 0:02:59]}  g6 {[%clk 0:02:55]} 4. d4 {[%clk 0:02:54]}  exd4 {[%clk 0:02:54]} 5. Qxd4 {[%clk 0:02:53]}  Nf6 {[%clk 0:02:55]} 6. Nf3 {[%clk 0:02:49]}  Bg7 {[%clk 0:02:55]} 7. b3 {[%clk 0:02:45]}  O-O {[%clk 0:02:54]} 8. Bb2 {[%clk 0:02:45]}  Bf5 {[%clk 0:02:36]} 9. Qd2 {[%clk 0:02:39]}  Nc6 {[%clk 0:02:35]} 10. Be2 {[%clk 0:02:38]}  Re8 {[%clk 0:02:33]} 11. O-O {[%clk 0:02:37]}  Ne4 {[%clk 0:02:32]} 12. Nxe4 {[%clk 0:02:37]}  Bxe4 {[%clk 0:02:33]} 13. Bxg7 {[%clk 0:02:36]}  Kxg7 {[%clk 0:02:34]} 14. Rfd1 {[%clk 0:02:32]}  Qf6 {[%clk 0:02:32]} 15. Rac1 {[%clk 0:02:31]}  a5 {[%clk 0:02:30]} 16. a3 {[%clk 0:02:30]}  h6 {[%clk 0:02:22]} 17. h3 {[%clk 0:02:29]}  Re7 {[%clk 0:02:04]} 18. Nh2 {[%clk 0:02:12]}  h5 {[%clk 0:02:00]} 19. Bf3 {[%clk 0:02:08]}  Rae8 {[%clk 0:01:46]} 20. b4 {[%clk 0:02:06]}  axb4 {[%clk 0:01:45]} 21. axb4 {[%clk 0:02:06]}  Bxf3 {[%clk 0:01:31]} 22. Nxf3 {[%clk 0:02:05]}  Ra8 {[%clk 0:01:25]} 23. c5 {[%clk 0:01:49]}  dxc5 {[%clk 0:01:23]} 24. bxc5 {[%clk 0:01:49]}  Rd8 {[%clk 0:01:13]} 25. Qc2 {[%clk 0:01:49]}  Red7 {[%clk 0:01:12]} 26. Rxd7 {[%clk 0:01:48]}  Rxd7 {[%clk 0:01:13]} 27. Qb3 {[%clk 0:01:48]}  Nd8 {[%clk 0:01:12]} 28. Nd4 {[%clk 0:01:43]}  Qe5 {[%clk 0:01:07]} 29. Qc4 {[%clk 0:01:13]}  c6 {[%clk 0:01:06]} 30. Nf3 {[%clk 0:01:06]}  Qf6 {[%clk 0:01:05]} 31. Rb1 {[%clk 0:01:06]}  Ne6 {[%clk 0:01:05]} 32. Ne1 {[%clk 0:00:59]}  Qe5 {[%clk 0:00:58]} 33. Nd3 {[%clk 0:00:42]}  Qd5 {[%clk 0:00:45]} 34. Qc3+ {[%clk 0:00:42]}  f6 {[%clk 0:00:45]} 35. Rb3 {[%clk 0:00:37]}  Kf7 {[%clk 0:00:45]} 36. h4 {[%clk 0:00:34]}  Ke7 {[%clk 0:00:39]} 37. g3 {[%clk 0:00:34]}  Kf7 {[%clk 0:00:39]} 38. Nf4 {[%clk 0:00:26]}  Qf3 {[%clk 0:00:31]} 39. Rb1 {[%clk 0:00:21]}  Nxf4 {[%clk 0:00:30]} 40. gxf4 {[%clk 0:00:19]}  Qg4+ {[%clk 0:00:30]} 41. Kf1 {[%clk 0:00:19]}  Qxh4 {[%clk 0:00:30]} 42. Qc4+ {[%clk 0:00:19]}  Kg7 {[%clk 0:00:22]} 43. Qe6 {[%clk 0:00:19]}  Qg4 {[%clk 0:00:16]} 44. Qxg4 {[%clk 0:00:19]}  hxg4 {[%clk 0:00:17]} 45. Kg2 {[%clk 0:00:19]}  f5 {[%clk 0:00:17]} 46. Kg3 {[%clk 0:00:19]}  Kf6 {[%clk 0:00:18]} 47. f3 {[%clk 0:00:19]}  gxf3 {[%clk 0:00:10]} 48. Kxf3 {[%clk 0:00:19]}  Ke6 {[%clk 0:00:10]} 49. Ke2 {[%clk 0:00:19]}  Rh7 {[%clk 0:00:08]} 50. Rd1 {[%clk 0:00:18]}  Rh2+ {[%clk 0:00:08]} 51. Kf3 {[%clk 0:00:18]}  Rc2 {[%clk 0:00:07]} 52. Rd6+ {[%clk 0:00:18]}  Ke7 {[%clk 0:00:08]} 53. Rxg6 {[%clk 0:00:18]}  Rxc5 {[%clk 0:00:08]} 54. Rg7+ {[%clk 0:00:19]}  Ke6 {[%clk 0:00:08]} 55. Rxb7 {[%clk 0:00:19]}  Rc3 {[%clk 0:00:08]} 56. Rc7 {[%clk 0:00:18]}  Kd6 {[%clk 0:00:07]} 57. Rc8 {[%clk 0:00:18]}  Ke6 {[%clk 0:00:07]} 58. Ke2 {[%clk 0:00:18]}  Rc5 {[%clk 0:00:05]} 59. Kd3 {[%clk 0:00:18]}  Kd6 {[%clk 0:00:06]} 60. Kd4 {[%clk 0:00:16]}  Rd5+ {[%clk 0:00:06]} 61. Kc4 {[%clk 0:00:16]}  Rc5+ {[%clk 0:00:06]} 62. Kd3 {[%clk 0:00:17]}  Rd5+ {[%clk 0:00:07]} 63. Ke2 {[%clk 0:00:17]}  Rc5 {[%clk 0:00:06]} 64. Rh8 {[%clk 0:00:17]}  Ke6 {[%clk 0:00:06]} 65. Rh6+ {[%clk 0:00:17]}  Ke7 {[%clk 0:00:05]} 66. Kd3 {[%clk 0:00:17]}  Kd7 {[%clk 0:00:03]} 67. Kd4 {[%clk 0:00:16]}  Rd5+ {[%clk 0:00:04]} 68. Kc4 {[%clk 0:00:17]}  Kc7 {[%clk 0:00:04]} 69. Rh7+ {[%clk 0:00:16]}  Kd6 {[%clk 0:00:03]} 70. Rh6+ {[%clk 0:00:15]}  Kc7 {[%clk 0:00:03]} 71. Rf6 {[%clk 0:00:15]}  Kd7 {[%clk 0:00:03]} 72. Rf7+ {[%clk 0:00:14]}  Kd6 {[%clk 0:00:03]} 73. Rf8 {[%clk 0:00:13]}  Rc5+ {[%clk 0:00:04]} 74. Kd3 {[%clk 0:00:13]}  Rd5+ {[%clk 0:00:05]} 75. Ke2 {[%clk 0:00:13]}  Ke7 {[%clk 0:00:05]} 76. Ra8 {[%clk 0:00:13]}  Kd7 {[%clk 0:00:05]} 77. Ra7+ {[%clk 0:00:12]}  Ke6 {[%clk 0:00:05]} 78. Ra8 {[%clk 0:00:12]}  Kd7 {[%clk 0:00:05]} 79. Rg8 {[%clk 0:00:12]}  Ke7 {[%clk 0:00:05]} 80. Rg6 {[%clk 0:00:11]}  Kd7 {[%clk 0:00:05]} 81. Rh6 {[%clk 0:00:10]}  Kc7 {[%clk 0:00:05]} 82. Kf3 {[%clk 0:00:10]}  Kd7 {[%clk 0:00:05]} 83. e4 {[%clk 0:00:10]}  fxe4+ {[%clk 0:00:04]} 84. Kxe4 {[%clk 0:00:10]}  Rb5 {[%clk 0:00:04]} 85. f5 {[%clk 0:00:11]}  Ke7 {[%clk 0:00:04]} 86. Rh7+ {[%clk 0:00:10]}  Kf6 {[%clk 0:00:04]} 87. Rh6+ {[%clk 0:00:11]}  Kf7 {[%clk 0:00:04]} 88. Rxc6 {[%clk 0:00:11]}  Rb1 {[%clk 0:00:04]} 89. Rc7+ {[%clk 0:00:10]}  Kf6 {[%clk 0:00:04]} 90. Rc6+ {[%clk 0:00:11]}  Kf7 {[%clk 0:00:04]} 91. Rc3 {[%clk 0:00:08]}  Kf6 {[%clk 0:00:04]} 92. Rf3 {[%clk 0:00:07]}  Rb4+ {[%clk 0:00:03]} 93. Kd5 {[%clk 0:00:07]}  Rb5+ {[%clk 0:00:04]} 94. Kd4 {[%clk 0:00:07]}  Rxf5 {[%clk 0:00:04]} 95. Rxf5+ {[%clk 0:00:08]}  Kxf5 {[%clk 0:00:05]} 1/2-1/2


[Site "https://www.chess.com"]

[Event "Titled Tuesday Blitz June 22 2021"]
[White "Vignesh, N R"]
[Black "David, Alexandru-Vasile"]
[WhiteFideId "25012215"]
[BlackFideId "1223453"]
[WhiteElo "2401"]
[BlackElo "2404"]
[Result "1-0"]
[Round "08"]
[TimeControl "180+1"]
[Date "2021.06.22"]
[WhiteClock "0:00:27"]
[BlackClock "0:00:11"]

1. d4 {[%clk 0:03:00]}  d5 {[%clk 0:02:59]} 2. Nf3 {[%clk 0:03:00]}  e6 {[%clk 0:02:56]} 3. e3 {[%clk 0:01:47]}  Nf6 {[%clk 0:02:55]} 4. Bd3 {[%clk 0:01:47]}  Bd6 {[%clk 0:02:52]} 5. O-O {[%clk 0:01:47]}  O-O {[%clk 0:02:52]} 6. Nbd2 {[%clk 0:01:47]}  b6 {[%clk 0:02:51]} 7. e4 {[%clk 0:01:46]}  dxe4 {[%clk 0:02:45]} 8. Nxe4 {[%clk 0:01:47]}  Bb7 {[%clk 0:02:42]} 9. Qe2 {[%clk 0:01:46]}  Nxe4 {[%clk 0:02:36]} 10. Bxe4 {[%clk 0:01:46]}  Bxe4 {[%clk 0:02:36]} 11. Qxe4 {[%clk 0:01:47]}  Nd7 {[%clk 0:02:37]} 12. Rd1 {[%clk 0:01:39]}  Nf6 {[%clk 0:02:33]} 13. Qe2 {[%clk 0:01:36]}  Qe7 {[%clk 0:02:32]} 14. Bg5 {[%clk 0:01:35]}  h6 {[%clk 0:02:31]} 15. Bh4 {[%clk 0:01:35]}  c5 {[%clk 0:02:29]} 16. dxc5 {[%clk 0:01:27]}  Bxc5 {[%clk 0:02:30]} 17. Ne5 {[%clk 0:01:27]}  Qc7 {[%clk 0:01:57]} 18. Bxf6 {[%clk 0:01:24]}  gxf6 {[%clk 0:01:58]} 19. Nd7 {[%clk 0:01:24]}  Rfd8 {[%clk 0:01:52]} 20. Nxf6+ {[%clk 0:01:16]}  Kg7 {[%clk 0:01:50]} 21. Nh5+ {[%clk 0:01:16]}  Kh7 {[%clk 0:01:41]} 22. Qe4+ {[%clk 0:01:13]}  Kh8 {[%clk 0:01:29]} 23. g3 {[%clk 0:01:04]}  Qe7 {[%clk 0:01:13]} 24. Qe5+ {[%clk 0:00:55]}  f6 {[%clk 0:00:46]} 25. Qxf6+ {[%clk 0:00:54]}  Qxf6 {[%clk 0:00:46]} 26. Nxf6 {[%clk 0:00:55]}  Bxf2+ {[%clk 0:00:46]} 27. Kxf2 {[%clk 0:00:55]}  Rf8 {[%clk 0:00:46]} 28. Ke3 {[%clk 0:00:55]}  Rxf6 {[%clk 0:00:46]} 29. Rf1 {[%clk 0:00:55]}  Raf8 {[%clk 0:00:45]} 30. Rxf6 {[%clk 0:00:54]}  Rxf6 {[%clk 0:00:46]} 31. Rd1 {[%clk 0:00:54]}  Rf5 {[%clk 0:00:38]} 32. Rd8+ {[%clk 0:00:52]}  Kg7 {[%clk 0:00:36]} 33. Rd7+ {[%clk 0:00:53]}  Kf6 {[%clk 0:00:36]} 34. Rxa7 {[%clk 0:00:52]}  Re5+ {[%clk 0:00:36]} 35. Kf3 {[%clk 0:00:49]}  Rf5+ {[%clk 0:00:35]} 36. Kg2 {[%clk 0:00:49]}  Rc5 {[%clk 0:00:34]} 37. c3 {[%clk 0:00:46]}  Rd5 {[%clk 0:00:35]} 38. b3 {[%clk 0:00:44]}  Rd3 {[%clk 0:00:22]} 39. c4 {[%clk 0:00:43]}  e5 {[%clk 0:00:23]} 40. Rb7 {[%clk 0:00:41]}  e4 {[%clk 0:00:23]} 41. Rxb6+ {[%clk 0:00:38]}  Ke5 {[%clk 0:00:24]} 42. Rb8 {[%clk 0:00:36]}  Rd2+ {[%clk 0:00:24]} 43. Kh3 {[%clk 0:00:36]}  Rxa2 {[%clk 0:00:20]} 44. c5 {[%clk 0:00:36]}  Kd4 {[%clk 0:00:14]} 45. b4 {[%clk 0:00:34]}  e3 {[%clk 0:00:13]} 46. Rd8+ {[%clk 0:00:32]}  Kc4 {[%clk 0:00:12]} 47. Re8 {[%clk 0:00:32]}  Kxb4 {[%clk 0:00:09]} 48. Rxe3 {[%clk 0:00:31]}  Kxc5 {[%clk 0:00:09]} 49. Re6 {[%clk 0:00:30]}  h5 {[%clk 0:00:08]} 50. Re5+ {[%clk 0:00:30]}  Kd6 {[%clk 0:00:09]} 51. Rxh5 {[%clk 0:00:31]}  Ke6 {[%clk 0:00:10]} 52. Rc5 {[%clk 0:00:27]}  Kf6 {[%clk 0:00:10]} 53. g4 {[%clk 0:00:26]}  Kg6 {[%clk 0:00:10]} 54. Kg3 {[%clk 0:00:27]}  Rb2 {[%clk 0:00:09]} 55. h3 {[%clk 0:00:26]}  Ra2 {[%clk 0:00:09]} 56. Kh4 {[%clk 0:00:26]}  Ra3 {[%clk 0:00:09]} 57. Rc6+ {[%clk 0:00:26]}  Kg7 {[%clk 0:00:09]} 58. g5 {[%clk 0:00:27]}  Rb3 {[%clk 0:00:10]} 59. Kg4 {[%clk 0:00:27]}  Ra3 {[%clk 0:00:10]} 60. h4 {[%clk 0:00:27]}  Ra1 {[%clk 0:00:11]} 61. Kh5 {[%clk 0:00:27]}  Rg1 {[%clk 0:00:11]} 62. Rc7+ {[%clk 0:00:27]}  Kf8 {[%clk 0:00:11]} 63. Kg6 {[%clk 0:00:27]} 1-0


[Site "https://www.chess.com"]

[Event "Titled Tuesday Blitz June 22 2021"]
[White "Yanchenko, Roman"]
[Black "Rychagov, Andrey"]
[WhiteFideId "4137329"]
[BlackFideId "4119932"]
[WhiteElo "2514"]
[BlackElo "2527"]
[Result "0-1"]
[Round "08"]
[TimeControl "180+1"]
[Date "2021.06.22"]
[WhiteClock "0:01:15"]
[BlackClock "0:01:42"]

1. d4 {[%clk 0:03:00]}  d5 {[%clk 0:02:57]} 2. c4 {[%clk 0:03:00]}  c6 {[%clk 0:02:57]} 3. Nc3 {[%clk 0:03:01]}  Nf6 {[%clk 0:02:57]} 4. Bg5 {[%clk 0:03:01]}  dxc4 {[%clk 0:02:55]} 5. Bxf6 {[%clk 0:03:01]}  exf6 {[%clk 0:02:55]} 6. e3 {[%clk 0:03:01]}  Be6 {[%clk 0:02:55]} 7. Nf3 {[%clk 0:03:01]}  Be7 {[%clk 0:02:53]} 8. a4 {[%clk 0:02:59]}  O-O {[%clk 0:02:42]} 9. Nd2 {[%clk 0:02:59]}  c5 {[%clk 0:02:42]} 10. Nxc4 {[%clk 0:02:58]}  cxd4 {[%clk 0:02:39]} 11. Qxd4 {[%clk 0:02:58]}  Nc6 {[%clk 0:02:37]} 12. Qxd8 {[%clk 0:02:51]}  Rfxd8 {[%clk 0:02:37]} 13. Be2 {[%clk 0:02:48]}  Nb4 {[%clk 0:02:30]} 14. O-O {[%clk 0:02:48]}  Nd3 {[%clk 0:02:30]} 15. Na5 {[%clk 0:02:30]}  Nxb2 {[%clk 0:02:28]} 16. Nxb7 {[%clk 0:02:26]}  Rd7 {[%clk 0:02:28]} 17. Bf3 {[%clk 0:02:25]}  Rb8 {[%clk 0:02:28]} 18. Na5 {[%clk 0:02:23]}  Rc7 {[%clk 0:02:13]} 19. Nc6 {[%clk 0:02:22]}  Rxc6 {[%clk 0:02:08]} 20. Bxc6 {[%clk 0:02:21]}  Rc8 {[%clk 0:02:08]} 21. Nd5 {[%clk 0:02:20]}  Bf8 {[%clk 0:02:00]} 22. Bb7 {[%clk 0:01:30]}  Rb8 {[%clk 0:01:59]} 23. Nf4 {[%clk 0:01:13]}  Rxb7 {[%clk 0:01:54]} 24. Nxe6 {[%clk 0:01:13]}  fxe6 {[%clk 0:01:54]} 25. Rfb1 {[%clk 0:01:14]}  Rb4 {[%clk 0:01:49]} 26. Ra2 {[%clk 0:01:14]}  Nd3 {[%clk 0:01:43]} 27. Rxb4 {[%clk 0:01:14]}  Bxb4 {[%clk 0:01:43]} 28. Rd2 {[%clk 0:01:15]}  Bxd2 {[%clk 0:01:42]} 0-1


[Site "https://www.chess.com"]

[Event "Titled Tuesday Blitz June 22 2021"]
[White "Zubov, Alexander"]
[Black "Perez Ponsa, Federico"]
[WhiteFideId "14109409"]
[BlackFideId "117927"]
[WhiteElo "2740"]
[BlackElo "2672"]
[Result "1/2-1/2"]
[Round "08"]
[TimeControl "180+1"]
[Date "2021.06.22"]
[WhiteClock "0:00:06"]
[BlackClock "0:00:02"]

1. d4 {[%clk 0:03:00]}  Nf6 {[%clk 0:02:53]} 2. c4 {[%clk 0:03:00]}  e6 {[%clk 0:02:52]} 3. Nf3 {[%clk 0:03:00]}  d5 {[%clk 0:02:50]} 4. Nc3 {[%clk 0:03:00]}  dxc4 {[%clk 0:02:46]} 5. e4 {[%clk 0:02:59]}  b5 {[%clk 0:02:46]} 6. e5 {[%clk 0:02:59]}  Nd5 {[%clk 0:02:47]} 7. Nxb5 {[%clk 0:02:59]}  Nb6 {[%clk 0:02:47]} 8. a3 {[%clk 0:02:59]}  Be7 {[%clk 0:02:41]} 9. Be3 {[%clk 0:02:51]}  Nc6 {[%clk 0:02:35]} 10. Qc2 {[%clk 0:02:50]}  Na5 {[%clk 0:02:18]} 11. Rd1 {[%clk 0:02:49]}  Ba6 {[%clk 0:02:14]} 12. Nc3 {[%clk 0:02:46]}  O-O {[%clk 0:02:14]} 13. h4 {[%clk 0:02:44]}  Rb8 {[%clk 0:02:01]} 14. Ng5 {[%clk 0:02:39]}  g6 {[%clk 0:02:00]} 15. Nge4 {[%clk 0:02:13]}  Nd5 {[%clk 0:01:58]} 16. Bh6 {[%clk 0:02:10]}  Re8 {[%clk 0:01:56]} 17. h5 {[%clk 0:02:10]}  Qc8 {[%clk 0:01:41]} 18. hxg6 {[%clk 0:02:06]}  fxg6 {[%clk 0:01:41]} 19. Rh3 {[%clk 0:02:01]}  Qb7 {[%clk 0:01:39]} 20. Na4 {[%clk 0:01:52]}  Bb5 {[%clk 0:01:29]} 21. Nac5 {[%clk 0:01:51]}  Qc6 {[%clk 0:01:24]} 22. Rg3 {[%clk 0:01:48]}  Bf8 {[%clk 0:01:04]} 23. Nf6+ {[%clk 0:01:23]}  Nxf6 {[%clk 0:00:53]} 24. Rxg6+ {[%clk 0:01:22]}  Kh8 {[%clk 0:00:47]} 25. exf6 {[%clk 0:00:50]}  e5 {[%clk 0:00:38]} 26. d5 {[%clk 0:00:27]}  Qxc5 {[%clk 0:00:26]} 27. Qf5 {[%clk 0:00:26]}  hxg6 {[%clk 0:00:08]} 28. Qxg6 {[%clk 0:00:27]}  Re7 {[%clk 0:00:09]} 29. fxe7 {[%clk 0:00:23]}  Qxe7 {[%clk 0:00:10]} 30. Bg5 {[%clk 0:00:24]}  Qh7 {[%clk 0:00:08]} 31. Qe6 {[%clk 0:00:14]}  Bg7 {[%clk 0:00:07]} 32. Be2 {[%clk 0:00:10]}  Qe4 {[%clk 0:00:03]} 33. Kf1 {[%clk 0:00:08]}  c3 {[%clk 0:00:03]} 34. Bxb5 {[%clk 0:00:08]}  Rxb5 {[%clk 0:00:03]} 35. Qe8+ {[%clk 0:00:08]}  Kh7 {[%clk 0:00:04]} 36. Qxb5 {[%clk 0:00:09]}  c2 {[%clk 0:00:03]} 37. Rc1 {[%clk 0:00:09]}  Nc4 {[%clk 0:00:04]} 38. Kg1 {[%clk 0:00:07]}  Qd3 {[%clk 0:00:03]} 39. b3 {[%clk 0:00:07]}  Qd1+ {[%clk 0:00:03]} 40. Kh2 {[%clk 0:00:07]}  Qh5+ {[%clk 0:00:03]} 41. Kg1 {[%clk 0:00:07]}  Qd1+ {[%clk 0:00:04]} 42. Kh2 {[%clk 0:00:06]}  Qh5+ {[%clk 0:00:04]} 43. Kg1 {[%clk 0:00:06]}  Qd1+ {[%clk 0:00:02]} 1/2-1/2


[Site "https://www.chess.com"]

[Event "Titled Tuesday Blitz June 22 2021"]
[White "Alavi, Sayed Javad"]
[Black "Sonis, Francesco"]
[WhiteFideId "12500607"]
[BlackFideId "895733"]
[WhiteElo "2495"]
[BlackElo "2373"]
[Result "0-1"]
[Round "09"]
[TimeControl "180+1"]
[Date "2021.06.22"]
[WhiteClock "0:00:03"]
[BlackClock "0:00:07"]

1. d4 {[%clk 0:03:00]}  Nf6 {[%clk 0:02:56]} 2. c4 {[%clk 0:02:59]}  c6 {[%clk 0:02:56]} 3. Bf4 {[%clk 0:02:57]}  d5 {[%clk 0:02:57]} 4. e3 {[%clk 0:02:57]}  Bf5 {[%clk 0:02:55]} 5. Qb3 {[%clk 0:02:54]}  Qc8 {[%clk 0:02:54]} 6. cxd5 {[%clk 0:02:42]}  Nxd5 {[%clk 0:02:29]} 7. Bg3 {[%clk 0:02:42]}  e6 {[%clk 0:02:27]} 8. Nc3 {[%clk 0:02:43]}  Bg6 {[%clk 0:02:25]} 9. Nf3 {[%clk 0:02:34]}  Be7 {[%clk 0:02:19]} 10. Be2 {[%clk 0:02:32]}  O-O {[%clk 0:02:19]} 11. O-O {[%clk 0:02:32]}  Nd7 {[%clk 0:02:20]} 12. Rac1 {[%clk 0:02:31]}  Nxc3 {[%clk 0:02:18]} 13. Rxc3 {[%clk 0:02:25]}  Nf6 {[%clk 0:02:16]} 14. Ne5 {[%clk 0:02:14]}  Ne4 {[%clk 0:02:15]} 15. Rcc1 {[%clk 0:02:12]}  Nxg3 {[%clk 0:02:13]} 16. hxg3 {[%clk 0:02:13]}  Be4 {[%clk 0:02:13]} 17. Bf3 {[%clk 0:02:00]}  Bd5 {[%clk 0:02:11]} 18. Bxd5 {[%clk 0:01:57]}  exd5 {[%clk 0:02:10]} 19. Qc2 {[%clk 0:01:57]}  Bd6 {[%clk 0:02:10]} 20. Nd3 {[%clk 0:01:54]}  Qe6 {[%clk 0:02:07]} 21. b4 {[%clk 0:01:50]}  a6 {[%clk 0:02:06]} 22. a4 {[%clk 0:01:47]}  Rfe8 {[%clk 0:02:00]} 23. Qb1 {[%clk 0:01:44]}  Qg4 {[%clk 0:01:58]} 24. b5 {[%clk 0:01:14]}  cxb5 {[%clk 0:01:58]} 25. axb5 {[%clk 0:01:14]}  a5 {[%clk 0:01:59]} 26. Qa2 {[%clk 0:01:01]}  Qf5 {[%clk 0:01:54]} 27. Nc5 {[%clk 0:00:55]}  b6 {[%clk 0:01:53]} 28. Na4 {[%clk 0:00:55]}  Rab8 {[%clk 0:01:34]} 29. Rc6 {[%clk 0:00:54]}  Re6 {[%clk 0:01:31]} 30. Nxb6 {[%clk 0:00:49]}  Bb4 {[%clk 0:00:50]} 31. Qxd5 {[%clk 0:00:33]}  Qxd5 {[%clk 0:00:38]} 32. Nxd5 {[%clk 0:00:34]}  Bf8 {[%clk 0:00:38]} 33. Nf4 {[%clk 0:00:28]}  Re7 {[%clk 0:00:33]} 34. b6 {[%clk 0:00:27]}  Reb7 {[%clk 0:00:31]} 35. Nd5 {[%clk 0:00:26]}  a4 {[%clk 0:00:31]} 36. Ra1 {[%clk 0:00:24]}  a3 {[%clk 0:00:31]} 37. e4 {[%clk 0:00:20]}  h6 {[%clk 0:00:28]} 38. Ra2 {[%clk 0:00:19]}  Re8 {[%clk 0:00:26]} 39. f3 {[%clk 0:00:18]}  Re6 {[%clk 0:00:25]} 40. Rc7 {[%clk 0:00:14]}  Rexb6 {[%clk 0:00:24]} 41. Nxb6 {[%clk 0:00:10]}  Rxc7 {[%clk 0:00:24]} 42. d5 {[%clk 0:00:08]}  Bc5+ {[%clk 0:00:23]} 43. Kh2 {[%clk 0:00:08]}  Bxb6 {[%clk 0:00:23]} 44. Rxa3 {[%clk 0:00:09]}  Bc5 {[%clk 0:00:22]} 45. Ra8+ {[%clk 0:00:07]}  Kh7 {[%clk 0:00:22]} 46. e5 {[%clk 0:00:08]}  Rd7 {[%clk 0:00:21]} 47. d6 {[%clk 0:00:07]}  Kg6 {[%clk 0:00:16]} 48. g4 {[%clk 0:00:07]}  Be3 {[%clk 0:00:15]} 49. g3 {[%clk 0:00:07]}  h5 {[%clk 0:00:10]} 50. gxh5+ {[%clk 0:00:06]}  Kxh5 {[%clk 0:00:10]} 51. Kh3 {[%clk 0:00:06]}  Kg5 {[%clk 0:00:09]} 52. Re8 {[%clk 0:00:06]}  Kf5 {[%clk 0:00:09]} 53. Re7 {[%clk 0:00:06]}  Rd8 {[%clk 0:00:06]} 54. g4+ {[%clk 0:00:05]}  Kg6 {[%clk 0:00:06]} 55. Kg3 {[%clk 0:00:04]}  Bc5 {[%clk 0:00:05]} 56. f4 {[%clk 0:00:04]}  f6 {[%clk 0:00:04]} 57. f5+ {[%clk 0:00:03]}  Kh6 {[%clk 0:00:05]} 58. exf6 {[%clk 0:00:02]}  gxf6 {[%clk 0:00:06]} 59. Re6 {[%clk 0:00:02]}  Bxd6+ {[%clk 0:00:06]} 60. Re5 {[%clk 0:00:02]}  Bxe5+ {[%clk 0:00:07]} 61. Kh4 {[%clk 0:00:03]} 0-1


[Site "https://www.chess.com"]

[Event "Titled Tuesday Blitz June 22 2021"]
[White "Bortnyk, Olexandr"]
[Black "Shevchenko, Kirill"]
[WhiteFideId "14120828"]
[BlackFideId "14129574"]
[WhiteElo "2723"]
[BlackElo "2569"]
[Result "1-0"]
[Round "09"]
[TimeControl "180+1"]
[Date "2021.06.22"]
[WhiteClock "0:00:40"]
[BlackClock "0:00:03"]

1. e4 {[%clk 0:03:00]}  c5 {[%clk 0:02:59]} 2. c3 {[%clk 0:03:01]}  d5 {[%clk 0:02:49]} 3. exd5 {[%clk 0:03:01]}  Nf6 {[%clk 0:02:49]} 4. Nf3 {[%clk 0:02:55]}  Nxd5 {[%clk 0:02:43]} 5. Bc4 {[%clk 0:02:47]}  Nc6 {[%clk 0:02:35]} 6. O-O {[%clk 0:02:25]}  Nb6 {[%clk 0:02:34]} 7. Bb5 {[%clk 0:02:25]}  Bf5 {[%clk 0:02:23]} 8. d4 {[%clk 0:02:22]}  e6 {[%clk 0:02:15]} 9. Be3 {[%clk 0:01:59]}  a6 {[%clk 0:02:06]} 10. Bxc6+ {[%clk 0:01:58]}  bxc6 {[%clk 0:02:07]} 11. dxc5 {[%clk 0:01:59]}  Qxd1 {[%clk 0:01:16]} 12. Rxd1 {[%clk 0:01:59]}  Na4 {[%clk 0:01:16]} 13. b4 {[%clk 0:01:47]}  Bxb1 {[%clk 0:01:16]} 14. Rdxb1 {[%clk 0:01:47]}  Nxc3 {[%clk 0:01:16]} 15. Rb3 {[%clk 0:01:45]}  Nd5 {[%clk 0:01:17]} 16. Ne5 {[%clk 0:01:41]}  Rc8 {[%clk 0:01:14]} 17. Rab1 {[%clk 0:01:27]}  f6 {[%clk 0:01:08]} 18. Nc4 {[%clk 0:01:26]}  Be7 {[%clk 0:00:49]} 19. Ra3 {[%clk 0:01:24]}  Ra8 {[%clk 0:00:49]} 20. Nb6 {[%clk 0:01:22]}  Nxb6 {[%clk 0:00:43]} 21. cxb6 {[%clk 0:01:23]}  Kf7 {[%clk 0:00:41]} 22. Rc3 {[%clk 0:01:15]}  Rac8 {[%clk 0:00:31]} 23. Rbc1 {[%clk 0:00:53]}  Rhd8 {[%clk 0:00:27]} 24. Kf1 {[%clk 0:00:52]}  Bxb4 {[%clk 0:00:11]} 25. Rxc6 {[%clk 0:00:52]}  Rxc6 {[%clk 0:00:12]} 26. Rxc6 {[%clk 0:00:52]}  Rd1+ {[%clk 0:00:12]} 27. Ke2 {[%clk 0:00:52]}  Rb1 {[%clk 0:00:13]} 28. b7 {[%clk 0:00:47]}  Ba5 {[%clk 0:00:13]} 29. Bb6 {[%clk 0:00:42]}  Rb2+ {[%clk 0:00:11]} 30. Kf3 {[%clk 0:00:39]}  Bxb6 {[%clk 0:00:03]} 31. b8=Q {[%clk 0:00:39]}  Rxf2+ {[%clk 0:00:03]} 32. Kg3 {[%clk 0:00:40]} 1-0


[Site "https://www.chess.com"]